[Event "3rd elllobregat Open 2022"]
[Site "Baix Llobregat"]
[Date "2022.11.30"]
[Round "1.4"]
[White "Valenzuela Gomez, Fernando"]
[Black "Cheparinov, Ivan"]
[Result "0-1"]
[ECO "B66"]
[WhiteElo "2368"]
[BlackElo "2694"]
[Annotator "TA"]
[PlyCount "167"]
[EventDate "2022.11.30"]
[EventType "swiss"]
[EventCountry "ESP"]
[SourceTitle "playchess.com"]
[Source "ChessBase"]
[SourceQuality "1"]
[TimeControl "40/5400+30:1800+30"]

{[%evp 23,167,29,27,24,29,17,31,20,28,27,29,32,30,32,32,20,16,14,18,22,28,0,0,0,0,-14,-5,-16,-12,-13,0,-6,0,0,0,0,0,-16,0,-22,0,0,0,0,0,-19,-9,-44,-49,-83,-8,-8,-8,-8,-8,-8,-8,-8,-8,-14,0,0,0,-8,-8,-8,-8,-8,-8,-8,-8,-8,-8,-127,-18,-127,-127,-127,-127,-127,-127,-127,-127,-127,-127,-127,-127,-127,-127,-127,-127,-127,-127,-127,-127,-127,-127,-127,-127,-127,-127,-127,-127,-127,-127,-145,-145,-145,-145,-145,-145,-145,-145,-145,-145,-145,-145,-145,-145,-145,-145,-145,-145,-145,-145,-145,-145,-145,-145,-145,-145,-145,-145,-145,-145,-29970,-29970,-29970,-29967,-29966,-29960,-29966,-29964,-29964,-4634,-4627]} 1. e4 {[%emt 0:04:19]} c5 {[%emt 0:00:07]} 2. Nf3 {[%emt 0:00:05]} d6 {[%emt 0:00:05]} 3. d4 {[%emt 0:00:09]} cxd4 {[%emt 0:00:06]} 4. Nxd4 {[%emt 0:00:03]} Nf6 {[%emt 0:00:07]} 5. Nc3 {[%emt 0:00:08]} Nc6 {[%emt 0:00:09]} 6. Bg5 {[%emt 0:01:58]} e6 {[%emt 0:00:09]} 7. Qd2 {[%emt 0:00:28]} a6 {[%emt 0:00:16]} 8. O-O-O {[%emt 0:00:35]} Bd7 {[%emt 0:00:06]} 9. Nxc6 {[%emt 0:00:13]} Bxc6 {[%emt 0:00:26]} 10. f3 {[%emt 0:00:04]} h6 {[%emt 0:05:55]} 11. Bf4 {[%emt 0:00:27]} d5 {[%emt 0:03:44]} 12. Qe1 {[%emt 0:01:09]} Bb4 {[%emt 0:04:23]} 13. a3 {[%emt 0:00:15] B66: Sicilian: Richter-Rauzer: 7...a6 8 0-0-0 h6.} Bxc3 {[%emt 0:03:18] The modern move.} 14. Qxc3 {[%emt 0:00:11]} O-O {[%emt 0:02:19]} 15. Be5 {[%emt 0:00:46] White is slightly better.} Rc8 {[%emt 0:00:47]} (15... Nd7 {is more complex.} 16. Bd6 Re8 17. exd5 Bxd5 18. Qc7 Qg5+) 16. Bxf6 {[%emt 0:00:06]} Qxf6 {[%emt 0:00:13]} 17. Qxf6 {[%emt 0:00:06]} gxf6 {[%emt 0:00:08]} 18. exd5 {[%emt 0:00:06]} Bxd5 {[%emt 0:00:02]} 19. Bd3 {[%emt 0:00:37]} Rc5 {[%emt 0:01:59] [#]} 20. Rhe1 $146 {[%emt 0:00:31]} ({Predecessor:} 20. b4 Rc3 21. Kb2 Rfc8 22. Rhe1 Kg7 {0-1 (22) Blas,I-Sherwood,R LSS email 2007}) 20... Rfc8 {[%emt 0:00:31]} 21. c3 {[%emt 0:02:00]} f5 {[%emt 0:04:49] Prevents Be4.} 22. Bc2 {[%emt 0:00:08]} Kg7 {[%emt 0:04:11]} 23. Rd4 {[%emt 0:00:47]} Kf6 {[%emt 0:00:46]} 24. Rh4 {[%emt 0:03:32]} Kg5 {[%emt 0:07:59]} 25. Rd4 {[%emt 0:06:42]} h5 {[%emt 0:00:31]} 26. Bd3 {[%emt 0:12:59]} Kf6 {[%emt 0:14:55]} 27. Rh4 {[%emt 0:13:10]} Kg5 {[%emt 0:10:21]} 28. Rd4 {[%emt 0:00:26]} h4 {[%emt 0:00:09]} 29. Kd2 {[%emt 0:02:37]} a5 {[%emt 0:00:30]} 30. Bf1 {[%emt 0:07:52]} Bb3 {[%emt 0:06:14]} 31. Bd3 {[%emt 0:05:57]} a4 {[%emt 0:02:31]} (31... Rd5 {simplifies} 32. Rxd5 Bxd5 33. c4 Bc6) 32. Bc2 {[%emt 0:11:52]} Rd5 {[%emt 0:09:16]} 33. Rxd5 {[%emt 0:08:53]} Bxd5 $11 {[%emt 0:00:01][%mdl 4096] Endgame KRB-KRB} 34. Ke3 {[%emt 0:00:46]} Bc6 {[%emt 0:09:53]} 35. Rd1 {[%emt 0:03:14]} e5 {[%emt 0:02:51]} 36. g3 {[%emt 0:07:35]} hxg3 {[%emt 0:02:20]} (36... Rh8 $1 $17 {White must now prevent ...hxg3.} 37. f4+ exf4+ 38. gxf4+ Kg4) 37. hxg3 {[%emt 0:00:05]} Rh8 {[%emt 0:00:28]} 38. f4+ {[%emt 0:02:22]} Kg4 {[%emt 0:00:56]} 39. fxe5 {[%emt 0:03:01] Rf1 is the strong threat.} Rh3 {[%emt 0:01:27] Threatens to win with ...f4+.} 40. Rd4+ {[%emt 0:00:00]} Kg5 $1 {[%emt 0:00:00] And now ...f4+ would win.} 41. Bxa4 {[%emt 0:14:46]} b5 {[%emt 0:06:36]} 42. Bd1 {[%emt 0:02:23]} Rxg3+ {[%emt 0:00:11]} 43. Kf2 {[%emt 0:02:44]} Rg2+ {[%emt 0:00:30]} 44. Ke3 {[%emt 0:01:08]} Rxb2 {[%emt 0:00:42]} 45. Bf3 {[%emt 0:02:44]} Bxf3 {[%emt 0:03:35]} 46. Kxf3 {[%emt 0:00:04] KR-KR} Rb3 {[%emt 0:00:08]} 47. a4 {[%emt 0:06:34]} Rxc3+ {[%emt 0:00:19]} 48. Ke2 {[%emt 0:00:28]} (48. Kf2 $1 $11) 48... Rc2+ {[%emt 0:03:35]} (48... Rc5 $17) 49. Ke1 {[%emt 0:02:42]} (49. Kf3 $1 $11 {remains equal.}) 49... Rc5 $17 {[%emt 0:02:41] Black is more active.} 50. axb5 {[%emt 0:00:11]} Rxe5+ {[%emt 0:00:04]} ({And not} 50... Rxb5 51. Rd7 $15) 51. Kf2 {[%emt 0:00:11]} Rxb5 {[%emt 0:00:02]} 52. Ra4 {[%emt 0:01:32]} Rb2+ {[%emt 0:05:44]} 53. Kf3 {[%emt 0:00:08]} Rb3+ {[%emt 0:00:09]} 54. Kf2 {[%emt 0:00:09]} Rc3 {[%emt 0:00:17]} 55. Rb4 {[%emt 0:00:12]} Ra3 {[%emt 0:00:16]} 56. Rc4 {[%emt 0:00:08]} Rh3 {[%emt 0:00:56]} 57. Ra4 {[%emt 0:00:23]} Rh4 {[%emt 0:00:13]} 58. Ra7 {[%emt 0:02:03]} f6 {[%emt 0:02:03]} 59. Kf3 {[%emt 0:01:12]} Rh3+ $1 {[%emt 0:00:13]} 60. Kg2 {[%emt 0:00:13]} Rd3 {[%emt 0:01:27]} 61. Ra4 {[%emt 0:00:12]} Re3 {[%emt 0:01:40]} 62. Kf2 {[%emt 0:00:31]} Re4 {[%emt 0:00:38]} 63. Ra8 {[%emt 0:00:32]} Rb4 {[%emt 0:00:00]} 64. Kf3 {[%emt 0:00:49]} Rb3+ $1 {[%emt 0:00:00]} 65. Kf2 {[%emt 0:00:06]} Kg4 {[%emt 0:00:00]} 66. Rg8+ {[%emt 0:03:12]} Kf4 {[%emt 0:00:02]} 67. Ra8 {[%emt 0:00:20]} Rb2+ {[%emt 0:00:36]} 68. Kf1 {[%emt 0:00:09]} Kg4 {[%emt 0:03:24]} 69. Ra4+ {[%emt 0:00:58]} f4 {[%emt 0:00:05]} 70. Ra3 {[%emt 0:00:06]} Rh2 {[%emt 0:00:35]} 71. Rb3 {[%emt 0:01:18]} f5 {[%emt 0:03:01]} 72. Ra3 {[%emt 0:00:35]} Rh3 {[%emt 0:00:53]} 73. Ra5 {[%emt 0:00:52]} Rb3 {[%emt 0:02:56]} 74. Kf2 {[%emt 0:00:56]} Rb2+ {[%emt 0:00:19]} 75. Kf1 {[%emt 0:00:12]} Rd2 {[%emt 0:05:46]} 76. Rb5 {[%emt 0:00:11]} Kf3 {[%emt 0:00:39][%cal Rd2d1]} 77. Rb3+ {[%emt 0:00:08]} Ke4 {[%emt 0:00:11]} 78. Ra3 {[%emt 0:01:15]} Rd3 {[%emt 0:00:12]} 79. Ra5 $2 {[%emt 0:00:40][%mdl 8192] [#] Now White is beyond hope.} (79. Ra2 $17) 79... Kf3 $1 {[%emt 0:00:19][%cal Rd3d1]} 80. Ke1 {[%emt 0:00:26]} Rb3 {[%emt 0:00:12]} 81. Rxf5 {[%emt 0:00:50]} Rb1+ {[%emt 0:00:03]} 82. Kd2 {[%emt 0:00:00]} Rf1 {[%emt 0:00:04]} 83. Rf8 {[%emt 0:00:54] [#]} Kg2 $1 {[%emt 0:00:10] ( -> ...f3)} 84. Rf7 {[%emt 0:00:38] Weighted Error Value: White=0.15 (very precise) /Black=0.09 (flawless)} 0-1

[Event "3rd elllobregat Open 2022"]
[Site "Baix Llobregat"]
[Date "2022.11.30"]
[Round "1.4"]
[White "Giannoulakis, Lampros"]
[Black "Aryan Chopra"]
[Result "0-1"]
[ECO "E93"]
[WhiteElo "2338"]
[BlackElo "2629"]
[Annotator "TA"]
[PlyCount "70"]
[EventDate "2022.11.30"]
[EventType "swiss"]
[EventCountry "ESP"]
[SourceTitle "playchess.com"]
[Source "ChessBase"]
[SourceQuality "1"]
[TimeControl "40/5400+30:1800+30"]

{[%evp 23,70,4,10,0,0,0,3,0,5,7,24,-11,-14,-11,-14,-178,-166,-164,-176,-158,-130,-164,-104,-213,-200,-212,-185,-185,-193,-225,-178,-172,-181,-178,-173,-174,-148,-195,-195,-214,-211,-261,-256,-256,-249,-246,-239,-540,-525]} 1. d4 {[%emt 0:00:11]} Nf6 {[%emt 0:00:05]} 2. c4 {[%emt 0:00:40]} g6 {[%emt 0:00:06]} 3. Nc3 {[%emt 0:00:12]} Bg7 {[%emt 0:00:05]} 4. e4 {[%emt 0:00:07]} d6 {[%emt 0:00:04]} 5. Nf3 {[%emt 0:00:08]} O-O {[%emt 0:00:06]} 6. Be2 {[%emt 0:00:14]} e5 {[%emt 0:00:09]} 7. d5 {[%emt 0:00:19]} Na6 {[%emt 0:00:16]} 8. Bg5 {[%emt 0:01:12][%cal Bc1g5,Bg5h4,Bh4g3,Bg3f2,Bf2e3][%mdl 32]} h6 {[%emt 0:00:23]} 9. Bh4 {[%emt 0:00:17]} g5 {[%emt 0:00:41]} 10. Bg3 {[%emt 0:00:24]} Nh5 {[%emt 0:00:12]} 11. Nd2 {[%emt 0:07:20]} Nf4 {[%emt 0:00:41]} 12. O-O {[%emt 0:00:43]} Nc5 {[%emt 0:03:05]} 13. f3 {[%emt 0:25:01] E93: King's Indian: Classical: Petrosian System with 7...Nbd7.} h5 {[%emt 0:06:28] [#]} 14. Bf2 $146 {[%emt 0:02:32]} ({Predecessor:} 14. Qc2 a5 15. Bf2 g4 16. fxg4 hxg4 17. a3 a4 18. Qd1 Bh6 19. Bxg4 Qg5 20. h3 Ncd3 {0-1 (38) Prieto,A (1999)-Ziska,H (2553) Reykjavik 2017}) 14... b6 {[%emt 0:06:04]} 15. Be3 {[%emt 0:09:57] The position is equal.} a5 {[%emt 0:19:15]} 16. Kh1 {[%emt 0:03:43]} Qe7 {[%emt 0:06:45]} 17. g3 {[%emt 0:09:27]} Nxe2 {[%emt 0:07:27]} 18. Qxe2 {[%emt 0:00:04]} f5 {[%emt 0:06:06] Prevents g4.} 19. f4 $2 {[%emt 0:04:24]} (19. Bxc5 $11 bxc5 20. exf5 Bxf5 21. Rae1) 19... exf4 $19 {[%emt 0:10:20]} 20. gxf4 {[%emt 0:06:22] [#]} g4 {[%emt 0:00:08]} 21. Rae1 {[%emt 0:07:25][%cal Oe4e5]} Nxe4 {[%emt 0:06:47] Black is more active.} ({And not} 21... fxe4 22. Bxc5 bxc5 23. Ndxe4 $15 (23. Ncxe4 Bf5 $17) (23. Qxe4 Qxe4+ 24. Ndxe4 Bf5 $17)) 22. Bg1 {[%emt 0:01:16]} Qf6 {[%emt 0:01:15]} (22... Bxc3 $19 23. bxc3 Qh7 24. Nxe4 fxe4) 23. Ncxe4 {[%emt 0:02:00]} (23. Ndxe4 $17 {was necessary.} fxe4 24. Nb5) 23... fxe4 {[%emt 0:00:07]} 24. b3 {[%emt 0:01:56]} Bf5 {[%emt 0:00:19]} 25. Nxe4 {[%emt 0:01:23] [#]} Qg6 {[%emt 0:00:06]} 26. Ng5 {[%emt 0:08:07]} Bd3 {[%emt 0:03:31] A strong pair of Bishops.} 27. Qe6+ {[%emt 0:00:12]} Qxe6 {[%emt 0:00:05]} 28. Nxe6 {[%emt 0:00:03]} Bxf1 {[%emt 0:00:13]} 29. Rxf1 {[%emt 0:00:06][%cal Oe6c7]} Rf7 {[%emt 0:01:17]} 30. a4 {[%emt 0:00:05]} (30. h3 $17 {was called for.}) 30... Bf6 {[%emt 0:02:14]} 31. Kg2 {[%emt 0:00:22]} Re7 {[%emt 0:00:21]} 32. Be3 {[%emt 0:05:01]} Kf7 {[%emt 0:00:57]} 33. f5 {[%emt 0:00:20]} Rg8 {[%emt 0:00:53]} 34. Bf2 {[%emt 0:04:15]} Ke8 {[%emt 0:00:58]} 35. Nf4 $2 {[%emt 0:01:04]} (35. Be1) 35... Rg5 {[%emt 0:00:56] Weighted Error Value: White=0.50/Black=0.09 (flawless)} 0-1

[Event "3rd elllobregat Open 2022"]
[Site "Baix Llobregat"]
[Date "2022.11.30"]
[Round "1.5"]
[White "Fedoseev, Vladimir"]
[Black "Adarsh Tripathi"]
[Result "1/2-1/2"]
[ECO "D31"]
[WhiteElo "2688"]
[BlackElo "2361"]
[Annotator "TA"]
[PlyCount "65"]
[EventDate "2022.11.30"]
[EventType "swiss"]
[EventCountry "ESP"]
[SourceTitle "playchess.com"]
[Source "ChessBase"]
[SourceQuality "1"]
[TimeControl "40/5400+30:1800+30"]

{[%evp 9,65,20,27,22,24,20,20,15,16,11,14,9,12,9,14,16,12,3,2,-18,-12,-13,-16,-12,-16,-33,-39,-34,-32,-33,0,0,0,-7,-7,-7,-7,-7,-7,-14,-1,-6,0,-163,-138,-158,-159,-166,-162,-162,-162,-162,-162,-116,-127,-287,0,0]} 1. d4 {[%emt 0:00:20]} d5 {[%emt 0:00:07]} 2. c4 {[%emt 0:00:09]} e6 {[%emt 0:00:04]} 3. Nc3 {[%emt 0:00:12]} a6 {[%emt 0:00:19]} 4. cxd5 {[%emt 0:01:19]} exd5 {[%emt 0:00:08]} 5. Nf3 {[%emt 0:00:07]} h6 {[%emt 0:00:49]} 6. Bf4 {[%emt 0:05:01] D31: Queen's Gambit Declined: Semi-Slav without ...Nf6 (+ Marshall Gambit and Noteboom) and Exchange Variation lines without ...Nf6.} Nf6 {[%emt 0:00:00] Against e4} 7. e3 {[%emt 0:00:08]} Bd6 {[%emt 0:00:00]} 8. Be5 {[%emt 0:00:26]} c6 {[%emt 0:01:57]} 9. h3 {[%emt 0:02:27]} Bxe5 {[%emt 0:01:31]} 10. Nxe5 {[%emt 0:01:00] [#]} Bf5 $146 {[%emt 0:01:04]} ({Predecessor:} 10... Nbd7 11. Nf3 O-O 12. Bd3 c5 13. dxc5 Nxc5 14. O-O Qb6 15. b3 Be6 16. Rc1 Rac8 {½-½ (43) Nikolov,M (2542)-Haubro,M (2407) Tornelo INT 2021}) 11. g4 {[%emt 0:03:10]} Bh7 {[%emt 0:01:11]} 12. Qb3 {[%emt 0:03:07]} Qc7 {[%emt 0:01:34]} 13. Rc1 {[%emt 0:00:36][%cal Oc3d5] White wants to play Nxd5!} Nbd7 {[%emt 0:02:50]} 14. f4 {[%emt 0:08:47][%cal Oc3d5]} (14. Nxd5 {keeps more tension.} Qa5+ 15. Nc3 Nxe5 16. dxe5 Qxe5 17. Qxb7 O-O 18. Bg2) 14... Nxe5 {[%emt 0:02:28]} 15. fxe5 {[%emt 0:02:16]} Ne4 {[%emt 0:00:06] next ...Qe7 is good for Black.} 16. Bg2 {[%emt 0:00:05]} Nxc3 {[%emt 0:06:00]} 17. bxc3 {[%emt 0:03:02]} Bd3 {[%emt 0:01:24] Prevents c4. Threatens to win with ...f6.} 18. Qd1 {[%emt 0:00:16] Inhibits f6.} Bc4 {[%emt 0:01:28] Hoping for ...f6.} 19. Bf1 $1 {[%emt 0:00:07]} Bxf1 {[%emt 0:00:37]} 20. Rxf1 {[%emt 0:00:07]} O-O {[%emt 0:01:18]} 21. Kd2 {[%emt 0:05:16]} Qe7 {[%emt 0:01:51]} 22. c4 {[%emt 0:07:16]} dxc4 {[%emt 0:05:57]} (22... Qa3 23. Qb3 Qa5+ 24. Ke2 $14) 23. Rxc4 {[%emt 0:00:08]} Rad8 $36 {[%emt 0:00:03][%mdl 2048] Black fights for an advantage.} 24. Ke2 $1 {[%emt 0:00:27]} Rd5 {[%emt 0:04:26]} 25. Qc2 {[%emt 0:03:32] Prevents c5.} Re8 {[%emt 0:10:51]} 26. Rb1 $2 {[%emt 0:09:35]} (26. Rc3 $11 {and White stays safe.}) 26... f6 $1 $19 {[%emt 0:02:09][%cal Bf7f6,Bf6e5,Be5d4][%mdl 32]} 27. Rcb4 {[%emt 0:12:26]} fxe5 {[%emt 0:05:26]} 28. Rxb7 {[%emt 0:00:12]} Qe6 {[%emt 0:00:05]} 29. Qf5 {[%emt 0:12:01] [#]} Qxf5 $1 {[%emt 0:00:51]} (29... exd4 30. Rxg7+ Kxg7 31. Rb7+ $11) 30. gxf5 {[%emt 0:00:11]} exd4 {[%emt 0:00:08]} 31. Rg1 {[%emt 0:00:30]} Rxe3+ {[%emt 0:00:29]} (31... dxe3 {leads to mate.} 32. Rgxg7+ (32. Rbxg7+ Kh8 $11) 32... Kh8 33. Rh7+ Kg8 34. Rbg7+ (34. Rxh6 Rxf5 35. Rg6+ Kf8 $11) 34... Kf8 35. f6 Rd2+ 36. Ke1) 32. Kd1 $2 {[%emt 0:00:10] [#]} (32. Kd2 $17 g5 33. fxg6) 32... Rxf5 $2 {[%emt 0:00:16]} ({Black should try} 32... g5 $1 $19 {...Rd3+ is the strong threat.} 33. fxg6 Rb5 34. Rxb5 axb5) 33. Rgxg7+ {[%emt 0:00:06] Weighted Error Value: White=0.21 (precise) /Black=0.13 (very precise)} 1/2-1/2

[Event "3rd elllobregat Open 2022"]
[Site "Baix Llobregat"]
[Date "2022.11.30"]
[Round "1.5"]
[White "Bartel, Mateusz"]
[Black "Hagner, Bennet"]
[Result "1/2-1/2"]
[ECO "D11"]
[WhiteElo "2627"]
[BlackElo "2336"]
[Annotator "TA"]
[PlyCount "59"]
[EventDate "2022.11.30"]
[EventType "swiss"]
[EventCountry "ESP"]
[SourceTitle "playchess.com"]
[Source "ChessBase"]
[SourceQuality "1"]
[TimeControl "40/5400+30:1800+30"]

{[%evp 9,59,10,45,44,40,-19,-23,-30,0,0,-8,-4,15,25,27,2,0,8,7,-11,0,0,0,-18,-15,-29,-21,-35,-18,-23,-23,-50,-17,-25,-34,-36,-30,-8,-18,-34,-30,-34,-54,-37,-25,-75,-8,-66,-58,-43,47,39]} 1. d4 {[%emt 0:00:08]} d5 {[%emt 0:00:13]} 2. c4 {[%emt 0:00:08]} c6 {[%emt 0:00:09]} 3. Nf3 {[%emt 0:00:13]} Nf6 {[%emt 0:00:07]} 4. Nbd2 {[%emt 0:00:10]} Bf5 {[%emt 0:01:17]} 5. Nh4 {[%emt 0:00:10]} Bg6 {[%emt 0:13:02]} 6. Qb3 {[%emt 0:01:10] D11: Slav Defence: 3 Nf3 sidelines and 3...Nf6 4 e3 Bg4.} Qc7 {[%emt 0:01:28]} 7. Qh3 {[%emt 0:14:13]} ({White should try} 7. Nxg6 $14 hxg6 8. g3) 7... Be4 $11 {[%emt 0:09:24]} 8. Qg3 {[%emt 0:02:30] [#] Inhibits e6. Black has an edge.} Qd7 $146 {[%emt 0:12:24]} ({Predecessor:} 8... Qa5 9. Qc3 Qd8 10. e3 e6 11. Be2 Be7 12. O-O O-O 13. g3 Nbd7 14. b3 h6 15. Bb2 a5 {0-1 (65) Manolache,M (2506)-Nastore,P (2249) Alba Iulia 2021}) 9. Nhf3 {[%emt 0:03:03]} e6 {[%emt 0:04:00]} 10. e3 {[%emt 0:01:52]} h6 {[%emt 0:02:07]} 11. Be2 {[%emt 0:01:27]} Bf5 {[%emt 0:05:43]} 12. O-O {[%emt 0:01:19]} Qd8 {[%emt 0:07:28] [#] aiming for ...Nh5.} 13. Ne5 {[%emt 0:03:14]} Nbd7 {[%emt 0:01:53]} 14. f4 {[%emt 0:11:20]} g6 {[%emt 0:07:56]} 15. Qe1 {[%emt 0:01:18]} h5 {[%emt 0:04:43]} 16. Ndf3 {[%emt 0:02:03]} Ne4 {[%emt 0:02:27]} 17. Bd2 {[%emt 0:00:07]} Nxe5 {[%emt 0:01:19]} 18. Nxe5 {[%emt 0:03:13]} a5 {[%emt 0:03:11]} (18... f6 $5 {[%cal Rf6e5]} 19. Nd3 h4 $11) 19. a3 {[%emt 0:03:19]} h4 {[%emt 0:02:31]} 20. b4 {[%emt 0:00:38][%cal Rb4a5]} Bd6 {[%emt 0:04:10]} (20... f6 $5 {[%cal Rf6e5]} 21. Nf3 axb4 22. Bxb4 h3 $15) 21. b5 {[%emt 0:08:02]} c5 {[%emt 0:01:33]} 22. Bc3 {[%emt 0:02:26]} Bxe5 {[%emt 0:01:27]} (22... f6 {seems wilder.} 23. Ng4 Rc8 24. Bxa5 b6) 23. fxe5 {[%emt 0:01:46]} dxc4 {[%emt 0:03:26]} (23... h3 $5 24. g3 $8 (24. g4 $2 Qg5 $19) 24... dxc4 $11) 24. dxc5 {[%emt 0:04:36]} Nxc5 {[%emt 0:01:21]} (24... h3 {feels hotter.} 25. g3 Nxc5 26. Bxc4 Ne4) 25. Bxc4 {[%emt 0:00:53]} h3 {[%emt 0:01:40] [#] White must now prevent ...hxg2.} 26. g3 {[%emt 0:02:07]} O-O {[%emt 0:02:46]} (26... Ne4 $5 {[%cal Rd8c7]} 27. Be2 Nxc3 28. Qxc3 O-O $11) 27. Bd4 {[%emt 0:02:25]} (27. Rd1 $11 Qc7 28. Qe2) 27... Qe7 {[%emt 0:01:10]} (27... Rc8 $17) 28. Qe2 {[%emt 0:00:29]} (28. g4 $11 Qg5 29. Bxc5 Qxg4+ 30. Qg3 Qxg3+ 31. hxg3) 28... Rac8 $15 {[%emt 0:01:28]} 29. Rf4 $1 {[%emt 0:04:01]} Qg5 {[%emt 0:02:03]} (29... Ne4 $15) 30. Bxc5 $1 {[%emt 0:16:37] Weighted Error Value: White=0.14 (very precise) /Black=0.15 (very precise)} 1/2-1/2

[Event "3rd elllobregat Open 2022"]
[Site "Baix Llobregat"]
[Date "2022.11.30"]
[Round "1.6"]
[White "Valmana Canto, Jaime"]
[Black "Alekseenko, Kirill"]
[Result "0-1"]
[ECO "B69"]
[WhiteElo "2358"]
[BlackElo "2687"]
[Annotator "TA"]
[PlyCount "88"]
[EventDate "2022.11.30"]
[EventType "swiss"]
[EventCountry "ESP"]
[SourceTitle "playchess.com"]
[Source "ChessBase"]
[SourceQuality "1"]
[TimeControl "40/5400+30:1800+30"]

{[%evp 24,88,60,18,39,27,31,23,65,18,48,13,39,43,57,64,66,59,61,59,139,132,138,114,112,79,75,86,71,77,93,78,77,68,77,64,77,101,87,81,106,106,130,60,158,163,190,183,176,166,142,86,127,125,87,0,39,40,26,6,13,0,0,0,0,-508,-460]} 1. e4 {[%emt 0:00:04]} c5 {[%emt 0:00:17]} 2. Nf3 {[%emt 0:00:07]} Nc6 {[%emt 0:01:17]} 3. d4 {[%emt 0:01:59]} cxd4 {[%emt 0:00:00]} 4. Nxd4 {[%emt 0:00:06]} Nf6 {[%emt 0:00:00]} 5. Nc3 {[%emt 0:00:07]} d6 {[%emt 0:00:07]} 6. Bg5 e6 {[%emt 0:00:53]} 7. Qd2 {[%emt 0:00:26]} a6 {[%emt 0:03:18]} 8. O-O-O {[%emt 0:01:50]} Bd7 {[%emt 0:01:20]} 9. f4 {[%emt 0:05:42]} Be7 {[%emt 0:09:22]} 10. Nf3 {[%emt 0:09:12]} b5 {[%emt 0:00:00]} 11. Bxf6 {[%emt 0:00:06]} gxf6 {[%emt 0:00:00]} 12. Kb1 {[%emt 0:04:10]} Qb6 {[%emt 0:06:54]} 13. Bd3 {[%emt 0:02:14]} (13. f5 {is interesting.} O-O-O 14. g3 Kb8 15. Bh3) 13... O-O-O {[%emt 0:04:59] B69: Sicilian: Richter-Rauzer: 7...a6 8 0-0-0 Bd7 9 f4 Be7 10 Nf3 b5 11 Bxf6.} 14. Rhe1 {[%emt 0:06:21]} Kb8 {[%emt 0:20:05]} 15. Ne2 {[%emt 0:06:55]} Rc8 {[%emt 0:00:00] [#] White has an edge.} 16. c3 $146 {[%emt 0:10:30]} (16. f5 $14) ({Predecessor:} 16. f5 Rc7 17. Qh6 Bc8 18. Qg7 Rf8 19. Qxh7 Nb4 20. Nc1 Bb7 21. c3 Nxd3 22. Nxd3 {½-½ (53) Firman,N (2476)-Timoshenko,I (2263) Alushta 2001}) 16... Na5 {[%emt 0:05:38]} 17. Nfd4 {[%emt 0:06:42][%cal Bf3d4,Bd4c2,Bc2b4][%mdl 32]} Rhd8 {[%emt 0:04:20]} 18. f5 {[%emt 0:04:35]} e5 {[%emt 0:00:00] Inhibits Nf4.} 19. Nc2 {[%emt 0:08:09]} Bc6 {[%emt 0:01:58]} 20. Qe3 {[%emt 0:21:56] Against d5} Qb7 {[%emt 0:02:01]} 21. Nb4 {[%emt 0:01:53]} Nc4 {[%emt 0:06:24]} (21... d5 $14) 22. Bxc4 $16 {[%emt 0:00:00]} bxc4 {[%emt 0:00:21]} 23. Ng3 {[%emt 0:04:12]} d5 {[%emt 0:10:27]} 24. exd5 Ba4 {[%emt 0:01:17]} 25. Nc6+ {[%emt 0:00:00]} Bxc6 {[%emt 0:00:00]} 26. dxc6 {[%emt 0:00:18]} Qxc6 {[%emt 0:00:00]} 27. Ne4 {[%emt 0:03:03]} a5 {[%emt 0:03:59]} 28. Kc1 Kb7 {[%emt 0:06:23]} 29. Qf3 {[%emt 0:01:29]} (29. Qe2 {looks sharper.} a4 30. Kc2 Rxd1 31. Rxd1 Ka7 32. a3) 29... Ka6 {[%emt 0:02:15]} 30. Rxd8 {[%emt 0:00:14]} Rxd8 {[%emt 0:00:00]} 31. Rd1 {[%emt 0:01:47]} Rxd1+ {[%emt 0:00:00]} 32. Kxd1 {[%emt 0:00:08][%mdl 4096] Endgame KQB-KQN} Qa4+ {[%emt 0:08:14]} 33. Ke2 {[%emt 0:09:30]} (33. Kc1 $16) 33... Qb5 {[%emt 0:00:20]} (33... Qxa2 $14 34. Nd2 Ka7) 34. Nd2 {[%emt 0:00:00][%cal Oa2a4] And now a4! would win.} Ka7 {[%emt 0:01:17] Prevents a4.} 35. Qe4 {[%emt 0:01:00]} Qxb2 {[%emt 0:00:09]} 36. Qxc4 {[%emt 0:00:14]} Qb7 {[%emt 0:00:32]} 37. Ne4 {[%emt 0:00:34]} ({Better is} 37. Qxf7 Qxg2+ 38. Kd1 Qh1+ 39. Kc2) 37... Bd8 {[%emt 0:01:23]} 38. Kf3 {[%emt 0:01:52]} Qd7 {[%emt 0:01:34]} 39. Ke2 (39. Kg4 $16) 39... Qxf5 {[%emt 0:05:26]} 40. Qxf7+ {[%emt 0:01:17]} Kb8 {[%emt 0:11:29]} 41. Qb3+ {[%emt 0:03:48]} (41. Qd5 $5 {[%cal Rd5d8]} Bb6 42. Kd2 $14) 41... Ka7 {[%emt 0:00:00]} 42. Nd6 {[%emt 0:02:30][%csl Gd6][%cal Rb3b7] [#]} Qg4+ {[%emt 0:00:00]} 43. Kf1 {[%emt 0:00:19][%csl Gd6][%cal Rb3b7]} Qf4+ {[%emt 0:01:37]} 44. Ke1 $2 {[%emt 0:00:14][%mdl 8192]} (44. Ke2 $11 Qg4+ 45. Kf1 Qf4+ 46. Ke2 Qg4+) 44... Qe3+ {[%emt 0:03:04] What a bad dream for White.   Weighted Error Value: White=0.31/Black=0.17 (very precise)} (44... Qxh2 $2 45. Qb7#) 0-1